[Event "Titled Tuesday Blitz May 03 Early 2022"]
[White "Winkels, Marcel"]
[Black "Bifulco, Michel"]
[WhiteFideId "1003887"]
[BlackFideId "828580"]
[WhiteElo "1900"]
[BlackElo "2165"]
[Result "0-1"]
[Round "06"]
[TimeControl "180+1"]
[Date "2022.05.03"]
[WhiteClock "0:00:05"]
[BlackClock "0:00:32"]

1. e4 {[%clk 0:03:00]}  e5 {[%clk 0:02:59]} 2. Nf3 {[%clk 0:02:59]}  Nc6 {[%clk 0:02:59]} 3. Bc4 {[%clk 0:03:00]}  Nf6 {[%clk 0:02:59]} 4. d3 {[%clk 0:02:57]}  h6 {[%clk 0:02:59]} 5. c3 {[%clk 0:02:57]}  d6 {[%clk 0:02:59]} 6. a4 {[%clk 0:02:55]}  g5 {[%clk 0:02:58]} 7. O-O {[%clk 0:02:54]}  Bg7 {[%clk 0:02:58]} 8. Re1 {[%clk 0:02:49]}  O-O {[%clk 0:02:55]} 9. Nbd2 {[%clk 0:02:47]}  g4 {[%clk 0:02:56]} 10. Nh4 {[%clk 0:02:43]}  Nxe4 {[%clk 0:02:56]} 11. g3 {[%clk 0:02:18]}  Nxd2 {[%clk 0:02:39]} 12. Bxd2 {[%clk 0:02:16]}  d5 {[%clk 0:02:39]} 13. Ba2 {[%clk 0:02:15]}  Be6 {[%clk 0:02:36]} 14. Qc2 {[%clk 0:01:42]}  f5 {[%clk 0:02:35]} 15. d4 {[%clk 0:01:36]}  f4 {[%clk 0:02:24]} 16. Ng6 {[%clk 0:01:34]}  fxg3 {[%clk 0:02:18]} 17. hxg3 {[%clk 0:01:18]}  Rf5 {[%clk 0:02:11]} 18. Nxe5 {[%clk 0:01:10]}  Nxe5 {[%clk 0:02:09]} 19. dxe5 {[%clk 0:01:10]}  Bxe5 {[%clk 0:02:04]} 20. Re2 {[%clk 0:01:02]}  Qd6 {[%clk 0:01:57]} 21. Rae1 {[%clk 0:00:59]}  Re8 {[%clk 0:01:49]} 22. Bxh6 {[%clk 0:00:49]}  Bxg3 {[%clk 0:01:36]} 23. Be3 {[%clk 0:00:28]}  Bh2+ {[%clk 0:01:16]} 24. Kg2 {[%clk 0:00:27]}  g3 {[%clk 0:01:08]} 25. f4 {[%clk 0:00:24]}  d4 {[%clk 0:00:47]} 26. Bxd4 {[%clk 0:00:20]}  Bd5+ {[%clk 0:00:40]} 27. Bxd5+ {[%clk 0:00:14]}  Qxd5+ {[%clk 0:00:41]} 28. Re4 {[%clk 0:00:13]}  Rxf4 {[%clk 0:00:39]} 29. Kh3 {[%clk 0:00:06]}  Rfxe4 {[%clk 0:00:32]} 30. Rxe4 {[%clk 0:00:06]}  Qxe4 {[%clk 0:00:32]} 31. Qb3+ {[%clk 0:00:05]}  Qe6+ {[%clk 0:00:32]} 0-1


[Site "https://www.chess.com"]

[Event "Titled Tuesday Blitz May 03 Early 2022"]
[White "Wong, Yinn Long"]
[Black "Nakamura, Hikaru"]
[WhiteFideId "5707684"]
[BlackFideId "2016192"]
[WhiteElo "2055"]
[BlackElo "2850"]
[Result "0-1"]
[Round "06"]
[TimeControl "180+1"]
[Date "2022.05.03"]
[WhiteClock "0:00:24"]
[BlackClock "0:01:30"]

1. b3 {[%clk 0:02:58]}  e5 {[%clk 0:02:58]} 2. Bb2 {[%clk 0:02:58]}  Nc6 {[%clk 0:02:56]} 3. e3 {[%clk 0:02:59]}  g6 {[%clk 0:02:53]} 4. Nf3 {[%clk 0:02:50]}  Bg7 {[%clk 0:02:53]} 5. d4 {[%clk 0:02:49]}  e4 {[%clk 0:02:50]} 6. Nfd2 {[%clk 0:02:49]}  f5 {[%clk 0:02:50]} 7. c4 {[%clk 0:02:42]}  d6 {[%clk 0:02:47]} 8. Nc3 {[%clk 0:02:41]}  Nf6 {[%clk 0:02:46]} 9. a3 {[%clk 0:02:25]}  O-O {[%clk 0:02:40]} 10. Qc2 {[%clk 0:02:25]}  f4 {[%clk 0:02:16]} 11. Ncxe4 {[%clk 0:02:09]}  fxe3 {[%clk 0:02:14]} 12. fxe3 {[%clk 0:02:06]}  Ng4 {[%clk 0:02:11]} 13. Qd3 {[%clk 0:01:53]}  Qh4+ {[%clk 0:02:09]} 14. g3 {[%clk 0:01:42]}  Qh6 {[%clk 0:02:08]} 15. O-O-O {[%clk 0:01:36]}  Qxe3 {[%clk 0:02:01]} 16. h3 {[%clk 0:01:11]}  Qxd3 {[%clk 0:01:55]} 17. Bxd3 {[%clk 0:01:12]}  Ne3 {[%clk 0:01:49]} 18. Rde1 {[%clk 0:01:10]}  Nf5 {[%clk 0:01:49]} 19. d5 {[%clk 0:01:05]}  Bxb2+ {[%clk 0:01:49]} 20. Kxb2 {[%clk 0:01:06]}  Ne5 {[%clk 0:01:50]} 21. Be2 {[%clk 0:00:56]}  Bd7 {[%clk 0:01:39]} 22. g4 {[%clk 0:00:54]}  Nh4 {[%clk 0:01:36]} 23. Rhf1 {[%clk 0:00:50]}  Ng2 {[%clk 0:01:35]} 24. Nf6+ {[%clk 0:00:46]}  Rxf6 {[%clk 0:01:34]} 25. Rxf6 {[%clk 0:00:39]}  Nxe1 {[%clk 0:01:34]} 26. Ne4 {[%clk 0:00:39]}  Kg7 {[%clk 0:01:32]} 27. Rf1 {[%clk 0:00:22]}  Ng2 {[%clk 0:01:32]} 28. c5 {[%clk 0:00:23]}  Ne3 {[%clk 0:01:29]} 29. Rc1 {[%clk 0:00:23]}  Nxd5 {[%clk 0:01:29]} 30. cxd6 {[%clk 0:00:23]}  cxd6 {[%clk 0:01:30]} 31. Nxd6 {[%clk 0:00:24]}  Nf4 {[%clk 0:01:29]} 32. Bf1 {[%clk 0:00:24]}  Ned3+ {[%clk 0:01:30]} 0-1


[Site "https://www.chess.com"]

[Event "Titled Tuesday Blitz May 03 Early 2022"]
[White "Yang, Kaiqi"]
[Black "Le Ruyet, Leopold"]
[WhiteFideId "8604398"]
[BlackFideId "645923"]
[WhiteElo "2373"]
[BlackElo "2276"]
[Result "0-1"]
[Round "06"]
[TimeControl "180+1"]
[Date "2022.05.03"]
[WhiteClock "0:00:01"]
[BlackClock "0:00:04"]

1. d4 {[%clk 0:03:00]}  Nf6 {[%clk 0:02:59]} 2. c4 {[%clk 0:03:00]}  g6 {[%clk 0:02:59]} 3. Nc3 {[%clk 0:03:00]}  d5 {[%clk 0:03:00]} 4. Nf3 {[%clk 0:02:58]}  Bg7 {[%clk 0:02:59]} 5. Bg5 {[%clk 0:02:58]}  Ne4 {[%clk 0:02:56]} 6. cxd5 {[%clk 0:02:58]}  Nxg5 {[%clk 0:02:55]} 7. Nxg5 {[%clk 0:02:59]}  e6 {[%clk 0:02:55]} 8. Nf3 {[%clk 0:02:59]}  exd5 {[%clk 0:02:55]} 9. e3 {[%clk 0:02:59]}  O-O {[%clk 0:02:55]} 10. b4 {[%clk 0:02:59]}  c6 {[%clk 0:02:54]} 11. Be2 {[%clk 0:02:57]}  a5 {[%clk 0:02:47]} 12. b5 {[%clk 0:02:57]}  Bf5 {[%clk 0:02:43]} 13. Rc1 {[%clk 0:02:48]}  Nd7 {[%clk 0:02:41]} 14. O-O {[%clk 0:02:46]}  Nf6 {[%clk 0:02:26]} 15. bxc6 {[%clk 0:02:45]}  bxc6 {[%clk 0:02:25]} 16. Na4 {[%clk 0:02:42]}  Rc8 {[%clk 0:02:21]} 17. Ne5 {[%clk 0:02:41]}  Qd6 {[%clk 0:02:16]} 18. Bd3 {[%clk 0:02:23]}  Be6 {[%clk 0:02:09]} 19. Nc5 {[%clk 0:02:14]}  Nd7 {[%clk 0:01:58]} 20. Nexd7 {[%clk 0:02:08]}  Bxd7 {[%clk 0:01:57]} 21. Qa4 {[%clk 0:02:08]}  f5 {[%clk 0:01:44]} 22. Qxa5 {[%clk 0:01:55]}  f4 {[%clk 0:01:44]} 23. exf4 {[%clk 0:01:44]}  Rxf4 {[%clk 0:01:32]} 24. Ba6 {[%clk 0:01:40]}  Rcf8 {[%clk 0:01:26]} 25. Nb3 {[%clk 0:00:50]}  Qf6 {[%clk 0:00:58]} 26. Rc2 {[%clk 0:00:44]}  Qg5 {[%clk 0:00:54]} 27. Rc3 {[%clk 0:00:28]}  Bxd4 {[%clk 0:00:39]} 28. Nxd4 {[%clk 0:00:26]}  Rxd4 {[%clk 0:00:40]} 29. Rg3 {[%clk 0:00:26]}  Qf4 {[%clk 0:00:37]} 30. Rf3 {[%clk 0:00:19]}  Qe5 {[%clk 0:00:33]} 31. Rxf8+ {[%clk 0:00:19]}  Kxf8 {[%clk 0:00:33]} 32. Qd8+ {[%clk 0:00:19]}  Be8 {[%clk 0:00:28]} 33. Bc8 {[%clk 0:00:18]}  Re4 {[%clk 0:00:20]} 34. Qa5 {[%clk 0:00:15]}  Ke7 {[%clk 0:00:16]} 35. Qc5+ {[%clk 0:00:14]}  Qd6 {[%clk 0:00:15]} 36. Qc3 {[%clk 0:00:15]}  d4 {[%clk 0:00:14]} 37. Qc4 {[%clk 0:00:10]}  Bf7 {[%clk 0:00:11]} 38. Qd3 {[%clk 0:00:10]}  Qe5 {[%clk 0:00:10]} 39. Bg4 {[%clk 0:00:10]}  c5 {[%clk 0:00:10]} 40. Bf3 {[%clk 0:00:10]}  Re1 {[%clk 0:00:10]} 41. a4 {[%clk 0:00:09]}  c4 {[%clk 0:00:09]} 42. Qa3+ {[%clk 0:00:08]}  Kf6 {[%clk 0:00:06]} 43. Qb4 {[%clk 0:00:07]}  Rxf1+ {[%clk 0:00:04]} 44. Kxf1 {[%clk 0:00:08]}  d3 {[%clk 0:00:04]} 45. a5 {[%clk 0:00:07]}  Qa1+ {[%clk 0:00:04]} 46. Qe1 {[%clk 0:00:07]}  Qxe1+ {[%clk 0:00:03]} 47. Kxe1 {[%clk 0:00:07]}  c3 {[%clk 0:00:04]} 48. Kd1 {[%clk 0:00:08]}  Bb3+ {[%clk 0:00:04]} 49. Kc1 {[%clk 0:00:06]}  d2+ {[%clk 0:00:04]} 50. Kb1 {[%clk 0:00:04]}  d1=Q+ {[%clk 0:00:05]} 51. Bxd1 {[%clk 0:00:04]}  Bxd1 {[%clk 0:00:06]} 52. a6 {[%clk 0:00:04]}  Ba4 {[%clk 0:00:05]} 53. a7 {[%clk 0:00:02]}  Bc6 {[%clk 0:00:06]} 54. f3 {[%clk 0:00:02]}  Ke5 {[%clk 0:00:04]} 55. Kc2 {[%clk 0:00:03]}  Kd4 {[%clk 0:00:05]} 56. h4 {[%clk 0:00:02]}  Kc4 {[%clk 0:00:04]} 57. Kc1 {[%clk 0:00:01]}  Kd4 {[%clk 0:00:04]} 0-1


[Site "https://www.chess.com"]

[Event "Titled Tuesday Blitz May 03 Early 2022"]
[White "Aaditya Dhingra"]
[Black "Bintang, Rasyid A. Hidayat"]
[WhiteFideId "25678191"]
[BlackFideId "7105355"]
[WhiteElo "1849"]
[BlackElo "2421"]
[Result "0-1"]
[Round "07"]
[TimeControl "180+1"]
[Date "2022.05.03"]
[WhiteClock "0:00:36"]
[BlackClock "0:00:51"]

1. d4 {[%clk 0:03:00]}  d5 {[%clk 0:02:59]} 2. c4 {[%clk 0:03:00]}  Nc6 {[%clk 0:02:59]} 3. Nc3 {[%clk 0:02:59]}  Nf6 {[%clk 0:02:59]} 4. Bg5 {[%clk 0:02:56]}  Ne4 {[%clk 0:02:58]} 5. cxd5 {[%clk 0:02:46]}  Nxc3 {[%clk 0:02:56]} 6. bxc3 {[%clk 0:02:45]}  Qxd5 {[%clk 0:02:57]} 7. Nf3 {[%clk 0:02:43]}  Bg4 {[%clk 0:02:53]} 8. Bd2 {[%clk 0:02:34]}  e5 {[%clk 0:02:50]} 9. Rb1 {[%clk 0:02:17]}  Bxf3 {[%clk 0:02:42]} 10. exf3 {[%clk 0:02:14]}  exd4 {[%clk 0:02:41]} 11. Rxb7 {[%clk 0:02:08]}  dxc3 {[%clk 0:02:21]} 12. Bxc3 {[%clk 0:02:06]}  Qxd1+ {[%clk 0:02:21]} 13. Kxd1 {[%clk 0:02:05]}  O-O-O+ {[%clk 0:02:22]} 14. Kc2 {[%clk 0:02:00]}  Kxb7 {[%clk 0:02:22]} 15. Bc4 {[%clk 0:01:49]}  f6 {[%clk 0:02:18]} 16. Rb1+ {[%clk 0:01:48]}  Ka8 {[%clk 0:01:56]} 17. Bb5 {[%clk 0:01:46]}  Nb8 {[%clk 0:01:50]} 18. Bd3 {[%clk 0:01:38]}  c6 {[%clk 0:01:47]} 19. Be4 {[%clk 0:01:35]}  Bd6 {[%clk 0:01:39]} 20. Ba5 {[%clk 0:01:30]}  Rc8 {[%clk 0:01:37]} 21. g3 {[%clk 0:01:20]}  Bc7 {[%clk 0:01:33]} 22. Bd2 {[%clk 0:01:16]}  Bb6 {[%clk 0:01:31]} 23. f4 {[%clk 0:01:14]}  Bxf2 {[%clk 0:01:26]} 24. f5 {[%clk 0:01:13]}  Bb6 {[%clk 0:01:22]} 25. a4 {[%clk 0:01:11]}  Rhe8 {[%clk 0:01:14]} 26. Bf3 {[%clk 0:01:10]}  Re5 {[%clk 0:01:14]} 27. g4 {[%clk 0:01:01]}  Rc5+ {[%clk 0:01:03]} 28. Kb2 {[%clk 0:00:54]}  Rd8 {[%clk 0:01:02]} 29. Bb4 {[%clk 0:00:47]}  Rc4 {[%clk 0:00:58]} 30. Kb3 {[%clk 0:00:45]}  Rf4 {[%clk 0:00:58]} 31. Be2 {[%clk 0:00:42]}  a5 {[%clk 0:00:56]} 32. Bc3 {[%clk 0:00:39]}  Ka7 {[%clk 0:00:51]} 33. Kc2 {[%clk 0:00:36]}  Na6 {[%clk 0:00:51]} 0-1


[Site "https://www.chess.com"]

[Event "Titled Tuesday Blitz May 03 Early 2022"]
[White "Andreikin, Dmitry"]
[Black "Janaszak, Dawid"]
[WhiteFideId "4158814"]
[BlackFideId "1119206"]
[WhiteElo "2736"]
[BlackElo "2199"]
[Result "1-0"]
[Round "07"]
[TimeControl "180+1"]
[Date "2022.05.03"]
[WhiteClock "0:02:20"]
[BlackClock "0:01:22"]

1. e4 {[%clk 0:03:00]}  e5 {[%clk 0:02:58]} 2. Nf3 {[%clk 0:03:01]}  Nc6 {[%clk 0:02:59]} 3. Bb5 {[%clk 0:03:00]}  a6 {[%clk 0:02:56]} 4. Ba4 {[%clk 0:03:00]}  Nf6 {[%clk 0:02:55]} 5. O-O {[%clk 0:03:01]}  b5 {[%clk 0:02:53]} 6. Bb3 {[%clk 0:03:00]}  Be7 {[%clk 0:02:54]} 7. Re1 {[%clk 0:02:58]}  O-O {[%clk 0:02:52]} 8. d3 {[%clk 0:02:58]}  d6 {[%clk 0:02:49]} 9. a4 {[%clk 0:02:57]}  Rb8 {[%clk 0:02:42]} 10. Nbd2 {[%clk 0:02:53]}  Na5 {[%clk 0:02:36]} 11. Ba2 {[%clk 0:02:54]}  c5 {[%clk 0:02:36]} 12. axb5 {[%clk 0:02:47]}  axb5 {[%clk 0:02:37]} 13. Nf1 {[%clk 0:02:46]}  Kh8 {[%clk 0:02:34]} 14. Bg5 {[%clk 0:02:45]}  Ng8 {[%clk 0:02:29]} 15. Bxe7 {[%clk 0:02:38]}  Nxe7 {[%clk 0:02:29]} 16. Ng5 {[%clk 0:02:37]}  f6 {[%clk 0:01:27]} 17. Nxh7 {[%clk 0:02:30]}  c4 {[%clk 0:01:24]} 18. Nxf8 {[%clk 0:02:26]}  Qxf8 {[%clk 0:01:25]} 19. Ne3 {[%clk 0:02:25]}  Be6 {[%clk 0:01:23]} 20. Bxc4 {[%clk 0:02:24]}  bxc4 {[%clk 0:01:22]} 21. Rxa5 {[%clk 0:02:23]}  Rxb2 {[%clk 0:01:22]} 22. dxc4 {[%clk 0:02:22]}  Ng6 {[%clk 0:01:22]} 23. Qh5+ {[%clk 0:02:20]} 1-0


[Site "https://www.chess.com"]

[Event "Titled Tuesday Blitz May 03 Early 2022"]
[White "Arabidze, Meri"]
[Black "Lamaze, Simon"]
[WhiteFideId "13604040"]
[BlackFideId "36069264"]
[WhiteElo "2335"]
[BlackElo "1999"]
[Result "1/2-1/2"]
[Round "07"]
[TimeControl "180+1"]
[Date "2022.05.03"]
[WhiteClock "0:00:07"]
[BlackClock "0:00:19"]

1. Nf3 {[%clk 0:03:00]}  Nf6 {[%clk 0:02:59]} 2. b3 {[%clk 0:03:01]}  d6 {[%clk 0:02:50]} 3. d4 {[%clk 0:03:00]}  Bg4 {[%clk 0:02:49]} 4. Bb2 {[%clk 0:03:00]}  Bxf3 {[%clk 0:02:47]} 5. exf3 {[%clk 0:03:01]}  g6 {[%clk 0:02:46]} 6. d5 {[%clk 0:02:57]}  Bg7 {[%clk 0:02:46]} 7. Be2 {[%clk 0:02:57]}  O-O {[%clk 0:02:45]} 8. O-O {[%clk 0:02:57]}  c6 {[%clk 0:02:46]} 9. dxc6 {[%clk 0:02:54]}  Nxc6 {[%clk 0:02:47]} 10. c4 {[%clk 0:02:55]}  e6 {[%clk 0:02:36]} 11. Nd2 {[%clk 0:02:45]}  Nh5 {[%clk 0:02:30]} 12. Bxg7 {[%clk 0:02:42]}  Nxg7 {[%clk 0:02:29]} 13. Ne4 {[%clk 0:02:40]}  Nf5 {[%clk 0:02:29]} 14. Qd2 {[%clk 0:02:36]}  d5 {[%clk 0:02:28]} 15. cxd5 {[%clk 0:02:36]}  exd5 {[%clk 0:02:28]} 16. Qxd5 {[%clk 0:02:32]}  Qxd5 {[%clk 0:02:26]} 17. Nf6+ {[%clk 0:02:31]}  Kg7 {[%clk 0:02:26]} 18. Nxd5 {[%clk 0:02:32]}  Rad8 {[%clk 0:02:27]} 19. Bc4 {[%clk 0:02:17]}  Na5 {[%clk 0:02:16]} 20. Rfd1 {[%clk 0:02:13]}  Rfe8 {[%clk 0:02:13]} 21. Bf1 {[%clk 0:01:59]}  Rc8 {[%clk 0:02:00]} 22. Rac1 {[%clk 0:01:51]}  Nc6 {[%clk 0:01:49]} 23. Bb5 {[%clk 0:01:49]}  Nfd4 {[%clk 0:01:44]} 24. Bf1 {[%clk 0:01:19]}  Rcd8 {[%clk 0:01:42]} 25. Ne3 {[%clk 0:01:17]}  f5 {[%clk 0:01:32]} 26. f4 {[%clk 0:01:13]}  Re6 {[%clk 0:01:25]} 27. g3 {[%clk 0:01:06]}  Red6 {[%clk 0:01:21]} 28. Kg2 {[%clk 0:01:05]}  h5 {[%clk 0:01:20]} 29. h4 {[%clk 0:01:05]}  a6 {[%clk 0:01:15]} 30. Rd2 {[%clk 0:00:55]}  Ne6 {[%clk 0:01:04]} 31. Rxd6 {[%clk 0:00:53]}  Rxd6 {[%clk 0:01:04]} 32. Nc4 {[%clk 0:00:48]}  Rd5 {[%clk 0:00:55]} 33. Be2 {[%clk 0:00:45]}  Ned4 {[%clk 0:00:52]} 34. Bf3 {[%clk 0:00:37]}  Nxf3 {[%clk 0:00:50]} 35. Kxf3 {[%clk 0:00:38]}  Kf6 {[%clk 0:00:50]} 36. Kg2 {[%clk 0:00:34]}  Rd4 {[%clk 0:00:46]} 37. Ne3 {[%clk 0:00:31]}  Rd2 {[%clk 0:00:45]} 38. Rc2 {[%clk 0:00:31]}  Rd3 {[%clk 0:00:43]} 39. Kf1 {[%clk 0:00:27]}  Rd7 {[%clk 0:00:36]} 40. Rc4 {[%clk 0:00:22]}  Rd2 {[%clk 0:00:33]} 41. Rc2 {[%clk 0:00:22]}  Rd7 {[%clk 0:00:32]} 42. Nc4 {[%clk 0:00:21]}  Rd1+ {[%clk 0:00:27]} 43. Kg2 {[%clk 0:00:20]}  Nd4 {[%clk 0:00:17]} 44. Rd2 {[%clk 0:00:20]}  Rxd2 {[%clk 0:00:18]} 45. Nxd2 {[%clk 0:00:21]}  Ke6 {[%clk 0:00:18]} 46. Nf3 {[%clk 0:00:17]}  Nxf3 {[%clk 0:00:18]} 47. Kxf3 {[%clk 0:00:18]}  Kd5 {[%clk 0:00:19]} 48. Ke3 {[%clk 0:00:18]}  b5 {[%clk 0:00:19]} 49. Kd3 {[%clk 0:00:17]}  b4 {[%clk 0:00:19]} 50. f3 {[%clk 0:00:13]}  a5 {[%clk 0:00:20]} 51. Ke3 {[%clk 0:00:13]}  Kc5 {[%clk 0:00:20]} 52. Kd3 {[%clk 0:00:11]}  Kd5 {[%clk 0:00:20]} 53. Ke2 {[%clk 0:00:10]}  Kd4 {[%clk 0:00:20]} 54. Kd2 {[%clk 0:00:10]}  Kd5 {[%clk 0:00:20]} 55. Kd3 {[%clk 0:00:10]}  Kc5 {[%clk 0:00:20]} 56. Ke3 {[%clk 0:00:08]}  Kd5 {[%clk 0:00:21]} 57. Kd3 {[%clk 0:00:07]}  Kc5 {[%clk 0:00:20]} 58. Kc2 {[%clk 0:00:06]}  Kd4 {[%clk 0:00:19]} 59. Kd2 {[%clk 0:00:07]}  Kd5 {[%clk 0:00:19]} 60. Kd3 {[%clk 0:00:07]} 1/2-1/2


[Site "https://www.chess.com"]

[Event "Titled Tuesday Blitz May 03 Early 2022"]
[White "Baches Garcia, Guillermo"]
[Black "Manukian, Artak"]
[WhiteFideId "2209764"]
[BlackFideId "13301373"]
[WhiteElo "2513"]
[BlackElo "2373"]
[Result "1-0"]
[Round "07"]
[TimeControl "180+1"]
[Date "2022.05.03"]
[WhiteClock "0:00:50"]
[BlackClock "0:01:56"]

1. e4 {[%clk 0:03:00]}  c6 {[%clk 0:02:59]} 2. c4 {[%clk 0:03:00]}  d5 {[%clk 0:03:00]} 3. exd5 {[%clk 0:03:00]}  cxd5 {[%clk 0:03:00]} 4. cxd5 {[%clk 0:03:01]}  Nf6 {[%clk 0:03:01]} 5. Nc3 {[%clk 0:03:02]}  g6 {[%clk 0:03:02]} 6. Nf3 {[%clk 0:03:02]}  Bg7 {[%clk 0:03:03]} 7. Bc4 {[%clk 0:03:02]}  O-O {[%clk 0:03:03]} 8. O-O {[%clk 0:03:02]}  Nbd7 {[%clk 0:03:02]} 9. d3 {[%clk 0:03:01]}  Nb6 {[%clk 0:03:02]} 10. Qb3 {[%clk 0:03:02]}  Bf5 {[%clk 0:03:02]} 11. Re1 {[%clk 0:02:58]}  Rc8 {[%clk 0:03:02]} 12. Bf4 {[%clk 0:02:49]}  Nxc4 {[%clk 0:02:56]} 13. dxc4 {[%clk 0:02:48]}  Bd3 {[%clk 0:02:57]} 14. Ne5 {[%clk 0:02:42]}  Bf5 {[%clk 0:02:57]} 15. Qxb7 {[%clk 0:02:36]}  Rb8 {[%clk 0:02:53]} 16. Qxa7 {[%clk 0:02:29]}  Rxb2 {[%clk 0:02:53]} 17. Nc6 {[%clk 0:02:23]}  Qa8 {[%clk 0:02:51]} 18. Nxe7+ {[%clk 0:02:18]}  Kh8 {[%clk 0:02:51]} 19. Qxa8 {[%clk 0:02:16]}  Rxa8 {[%clk 0:02:51]} 20. Nxf5 {[%clk 0:02:15]}  gxf5 {[%clk 0:02:52]} 21. Be5 {[%clk 0:02:05]}  Ne4 {[%clk 0:02:46]} 22. Bxg7+ {[%clk 0:01:59]}  Kxg7 {[%clk 0:02:47]} 23. Nxe4 {[%clk 0:01:55]}  fxe4 {[%clk 0:02:48]} 24. Rxe4 {[%clk 0:01:55]}  Raxa2 {[%clk 0:02:48]} 25. Rf1 {[%clk 0:01:54]}  f5 {[%clk 0:02:38]} 26. Rf4 {[%clk 0:01:51]}  Kg6 {[%clk 0:02:36]} 27. g3 {[%clk 0:01:47]}  Rc2 {[%clk 0:02:35]} 28. Rd1 {[%clk 0:01:43]}  Rd2 {[%clk 0:02:34]} 29. Rxd2 {[%clk 0:01:43]}  Rxd2 {[%clk 0:02:35]} 30. Kg2 {[%clk 0:01:43]}  h5 {[%clk 0:02:28]} 31. h4 {[%clk 0:01:42]}  Kf6 {[%clk 0:02:28]} 32. Kf3 {[%clk 0:01:41]}  Ke5 {[%clk 0:02:28]} 33. c5 {[%clk 0:01:23]}  Rxd5 {[%clk 0:02:25]} 34. Rc4 {[%clk 0:01:22]}  Rd3+ {[%clk 0:02:15]} 35. Ke2 {[%clk 0:01:21]}  Rd8 {[%clk 0:02:14]} 36. c6 {[%clk 0:01:18]}  Kd5 {[%clk 0:02:13]} 37. c7 {[%clk 0:01:11]}  Rc8 {[%clk 0:02:09]} 38. Rc2 {[%clk 0:01:09]}  f4 {[%clk 0:02:07]} 39. Kf3 {[%clk 0:00:57]}  fxg3 {[%clk 0:02:06]} 40. fxg3 {[%clk 0:00:58]}  Kd6 {[%clk 0:02:05]} 41. Kf4 {[%clk 0:00:56]}  Kd7 {[%clk 0:02:05]} 42. Kg5 {[%clk 0:00:53]}  Rg8+ {[%clk 0:01:59]} 43. Kxh5 {[%clk 0:00:52]}  Kc8 {[%clk 0:01:56]} 44. Rc3 {[%clk 0:00:50]} 1-0


[Site "https://www.chess.com"]

[Event "Titled Tuesday Blitz May 03 Early 2022"]
[White "Balabayeva, Xeniya"]
[Black "Legenia, Artem"]
[WhiteFideId "13719688"]
[BlackFideId "14136945"]
[WhiteElo "1941"]
[BlackElo "1936"]
[Result "1-0"]
[Round "07"]
[TimeControl "180+1"]
[Date "2022.05.03"]
[WhiteClock "0:00:15"]
[BlackClock "0:01:19"]

1. e4 {[%clk 0:03:00]}  d5 {[%clk 0:02:59]} 2. exd5 {[%clk 0:03:00]}  Qxd5 {[%clk 0:03:00]} 3. Nf3 {[%clk 0:02:59]}  Nc6 {[%clk 0:02:58]} 4. d4 {[%clk 0:02:58]}  Bg4 {[%clk 0:02:56]} 5. Be2 {[%clk 0:02:58]}  O-O-O {[%clk 0:02:55]} 6. Be3 {[%clk 0:02:57]}  e5 {[%clk 0:02:54]} 7. c4 {[%clk 0:02:53]}  Bb4+ {[%clk 0:02:54]} 8. Bd2 {[%clk 0:02:50]}  Qa5 {[%clk 0:02:53]} 9. d5 {[%clk 0:02:48]}  Bxf3 {[%clk 0:02:48]} 10. Bxf3 {[%clk 0:02:48]}  Nd4 {[%clk 0:02:49]} 11. Be2 {[%clk 0:02:36]}  Nf6 {[%clk 0:02:30]} 12. O-O {[%clk 0:02:27]}  c6 {[%clk 0:02:19]} 13. Bc3 {[%clk 0:01:57]}  Bxc3 {[%clk 0:02:12]} 14. bxc3 {[%clk 0:01:39]}  Ne6 {[%clk 0:02:02]} 15. Nd2 {[%clk 0:01:18]}  cxd5 {[%clk 0:02:01]} 16. Rb1 {[%clk 0:01:10]}  Qxc3 {[%clk 0:01:53]} 17. cxd5 {[%clk 0:00:51]}  Nc5 {[%clk 0:01:51]} 18. Rc1 {[%clk 0:00:40]}  Qb4 {[%clk 0:01:39]} 19. Rc4 {[%clk 0:00:21]}  Qb6 {[%clk 0:01:36]} 20. Qc2 {[%clk 0:00:20]}  Rxd5 {[%clk 0:01:32]} 21. Bf3 {[%clk 0:00:19]}  e4 {[%clk 0:01:30]} 22. Nxe4 {[%clk 0:00:19]}  Nxe4 {[%clk 0:01:26]} 23. Bxe4 {[%clk 0:00:18]}  Re5 {[%clk 0:01:27]} 24. Rc1 {[%clk 0:00:16]}  Kb8 {[%clk 0:01:21]} 25. Rxc5 {[%clk 0:00:16]}  Rf5 {[%clk 0:01:19]} 26. Bxf5 {[%clk 0:00:15]} 1-0


[Site "https://www.chess.com"]

[Event "Titled Tuesday Blitz May 03 Early 2022"]
[White "Bartel, Michal"]
[Black "Silvestre, Christian"]
[WhiteFideId "1119257"]
[BlackFideId "30956269"]
[WhiteElo "2211"]
[BlackElo "2365"]
[Result "1-0"]
[Round "07"]
[TimeControl "180+1"]
[Date "2022.05.03"]
[WhiteClock "0:01:17"]
[BlackClock "0:00:12"]

1. e4 {[%clk 0:03:00]}  c6 {[%clk 0:02:59]} 2. d4 {[%clk 0:03:00]}  d5 {[%clk 0:02:59]} 3. e5 {[%clk 0:03:00]}  a6 {[%clk 0:02:58]} 4. Nd2 {[%clk 0:03:00]}  Bf5 {[%clk 0:02:58]} 5. Be2 {[%clk 0:02:58]}  e6 {[%clk 0:02:54]} 6. Nb3 {[%clk 0:02:58]}  h6 {[%clk 0:02:53]} 7. Be3 {[%clk 0:02:59]}  Nd7 {[%clk 0:02:51]} 8. f4 {[%clk 0:02:59]}  Rc8 {[%clk 0:02:46]} 9. Nf3 {[%clk 0:02:58]}  c5 {[%clk 0:02:46]} 10. c3 {[%clk 0:02:58]}  c4 {[%clk 0:02:40]} 11. Nbd2 {[%clk 0:02:59]}  Qb6 {[%clk 0:02:40]} 12. Qc1 {[%clk 0:02:55]}  Ne7 {[%clk 0:02:33]} 13. O-O {[%clk 0:02:55]}  Qa5 {[%clk 0:02:32]} 14. Ne1 {[%clk 0:02:53]}  b5 {[%clk 0:02:32]} 15. g4 {[%clk 0:02:52]}  Bh7 {[%clk 0:02:31]} 16. Ng2 {[%clk 0:02:48]}  b4 {[%clk 0:02:31]} 17. Nh4 {[%clk 0:02:47]}  bxc3 {[%clk 0:02:20]} 18. bxc3 {[%clk 0:02:48]}  Nc6 {[%clk 0:02:19]} 19. a4 {[%clk 0:02:46]}  Be7 {[%clk 0:02:16]} 20. Ndf3 {[%clk 0:02:39]}  Be4 {[%clk 0:02:08]} 21. f5 {[%clk 0:02:38]}  Rb8 {[%clk 0:02:02]} 22. Qe1 {[%clk 0:02:24]}  Rb2 {[%clk 0:01:51]} 23. Rc1 {[%clk 0:02:01]}  Kd8 {[%clk 0:01:22]} 24. Nd2 {[%clk 0:01:57]}  Bxh4 {[%clk 0:00:59]} 25. Qxh4+ {[%clk 0:01:56]}  Kc7 {[%clk 0:00:59]} 26. fxe6 {[%clk 0:01:54]}  fxe6 {[%clk 0:00:59]} 27. Rf7 {[%clk 0:01:50]}  g5 {[%clk 0:00:46]} 28. Qf2 {[%clk 0:01:49]}  Bg6 {[%clk 0:00:41]} 29. Rg7 {[%clk 0:01:46]}  Rf8 {[%clk 0:00:38]} 30. Qg2 {[%clk 0:01:38]}  Bd3 {[%clk 0:00:28]} 31. Bxd3 {[%clk 0:01:36]}  cxd3 {[%clk 0:00:29]} 32. c4 {[%clk 0:01:37]}  dxc4 {[%clk 0:00:24]} 33. Rxc4 {[%clk 0:01:37]}  Qb6 {[%clk 0:00:18]} 34. Qe4 {[%clk 0:01:27]}  Rb1+ {[%clk 0:00:15]} 35. Nxb1 {[%clk 0:01:20]}  Qxb1+ {[%clk 0:00:16]} 36. Rc1 {[%clk 0:01:20]}  d2 {[%clk 0:00:12]} 37. Qxc6+ {[%clk 0:01:17]}  Kb8 {[%clk 0:00:12]} 38. Rxb1+ {[%clk 0:01:17]} 1-0


[Site "https://www.chess.com"]